fUSD/lending_fUSD_20240127
["ID","MTS","AMOUNT","RATE_DAILY","PERIOD"]
[312845332,1706345876586,156.92323127,0.00021,2]
[312845333,1706345877540,60.47301742,0.0002079,2]
[312845334,1706345877563,332.93814665,0.0002079,2]
[312845335,1706345879588,828.4004548,0.00021,2]
[312845336,1706345879854,362.154075,0.00021,2]
[312845337,1706345881345,155.34812394,0.00021,2]
[312845338,1706345884802,159.38839039,0.00021,2]
[312845339,1706345888490,883.62733182,0.00021,2]
[312845340,1706345890775,155.0,0.00021,2]
[312845341,1706345896872,2723.1434774,0.00021,2]
[312845342,1706345896895,178.82851952,0.00021,2]
[312845343,1706345899930,155.23340328,0.00021,2]
[312845344,1706345903249,2325.32167616,0.00021,2]
[312845345,1706345903372,1229.16023377,0.00020607,2]
[312845346,1706345904248,156.22271469,0.000189,2]
[312845347,1706345904663,780.13,0.0002102,2]
[312845348,1706345908408,775.10345258,0.00021,2]
[312845349,1706345908433,323.70521776,0.00021,2]
[312845350,1706345917923,265.82049859,0.00021,2]
[312845351,1706345923365,1229.16023377,0.00020607,2]
[312845352,1706345924767,155.0,0.00021,2]
[312845353,1706345930232,155.0,0.00021,2]
[312845354,1706345934255,284.18685088,0.00021,2]
[312845355,1706345937532,1426.67159507,0.0002079,2]
[312845356,1706345939895,155.0,0.00021,2]
[312845357,1706345943376,230.9762287,0.00020607,2]
[312845358,1706345948222,155.42527609,0.00021,2]
[312845359,1706345955901,155.31271408,0.00021,2]
[312845360,1706345959609,1063.74138506,0.00020607,2]
[312845361,1706345959632,164.99504104,0.00020607,2]
[312845362,1706345959658,1988.27473803,0.0002079,2]
[312845363,1706345960484,885.78577679,0.00021,2]
[312845364,1706345969255,2327.16729736,0.00021,2]
[312845365,1706345974420,1243.26452789,0.00021,2]
[312845366,1706345977390,1228.7364261,0.00020607,2]
[312845367,1706345985258,1821.15252685,0.00021,2]
[312845368,1706346012762,2114.627127,0.00021969,2]
[312845369,1706346028184,222.28163957,0.00021,2]
[312845371,1706346236310,889.0,0.00021873,2]
[312845372,1706346308705,2020.47,0.00022,2]
[312845373,1706346319914,167.32,0.00017659,2]
[312845374,1706346345748,937.32,0.00020062,2]
[312845375,1706346357116,500.0,0.00021925,2]
[312845376,1706346415439,611.11408012,0.00021925,2]
[312845377,1706346431435,611.11408012,0.00021925,2]
[312845378,1706346436240,166.94,0.00021948,2]
[312845379,1706346439732,26725.58,0.00021936,2]
[312845380,1706346451433,611.11408012,0.00021925,2]
[312845381,1706346469441,239.53479366,0.00021936,2]
[312845382,1706346492405,153.83,0.00021978,2]
[312845383,1706346493122,23900.0,0.00021948,2]
[312845384,1706346522960,473.4,0.00021818,2]
[312845385,1706346537980,250.0,0.00021818,2]
[312845386,1706346545459,200.0,0.00021709,2]
[312845387,1706346548096,-165.14434528,0.00022019,2]
[312845388,1706346548130,-155.0,0.0002202,2]
[312845389,1706346548152,-623.08608683,0.00022021,2]
[312845390,1706346548174,-150.0,0.00022022,2]
[312845391,1706346548196,-167.14126719,0.00022063,2]
[312845392,1706346563095,622.39886001,0.0002119,2]
[312845393,1706346608122,155.62368512,0.00021973,2]
[312845428,1706346633122,-696.61873281,0.00022063,2]
[312845429,1706346633131,-607.09164688,0.00022064,2]
[312845430,1706346633180,-83.66261453,0.00022064,2]
[312845431,1706346633190,-690.75426141,0.00022064,2]
[312845432,1706346633199,-41.32334902,0.00022064,2]
[312845433,1706346633210,-649.43091239,0.00022064,2]
[312845434,1706346633219,-164.89025364,0.00022073,2]
[312845435,1706346633229,-155.0,0.00022073,2]
[312845436,1706346633238,-602.77755394,0.00022073,2]
[312845437,1706346633249,-464.13864949,0.00022073,2]
[312845438,1706346633258,-107.87638858,0.00022074,2]
[312845439,1706346633269,-42.12361142,0.00022074,2]
[312845440,1706346633278,-300.0,0.00022074,2]
[312845441,1706346633287,-150.0,0.00022074,2]
[312845442,1706346633296,-175.73782228,0.00022075,2]
[312845443,1706346633307,-10788.2924153,0.00022075,2]
[312845444,1706346633316,-368.27,0.0002208,2]
[312845445,1706346633325,-923.07,0.00022124,2]
[312845446,1706346633334,-153.21,0.0002224,2]
[312845447,1706346633343,-200.0,0.00022273,2]
[312845448,1706346633352,-499.99,0.00022273,2]
[312845449,1706346633361,-597.83,0.00022322,2]
[312845450,1706346633370,-937.32,0.00022326,2]
[312845451,1706346633379,-250.0,0.00022329,2]
[312845452,1706346633388,-526.6,0.00022494,2]
[312845453,1706346633397,-200.0,0.00022579,2]
[312845454,1706346633406,-153.21,0.00022626,2]
[312845455,1706346633415,-366.22592661,0.00022799,2]
[312845456,1706346633431,-1090.18137339,0.00022799,2]
[312845457,1706346633441,-2796.4728,0.000228,2]
[312845458,1706346633454,-155.62368496,0.00022833,2]
[312845459,1706346633463,-189.74882569,0.00022899,2]
[312845514,1706346638699,-1044.616485,0.00022899,2]
[312845515,1706346638711,-2900.000003,0.00022899,2]
[312845516,1706346638756,-95818.59056355,0.00022899,2]
[312845517,1706346638765,-105481.7361,0.000229,2]
[312845518,1706346638774,-1312.67,0.000229,2]
[312845519,1706346638783,-534.15370615,0.000229,2]
[312845520,1706346638793,-235.56484253,0.00022994,2]
[312845521,1706346638802,-19741.20290176,0.00022996,2]
[312845522,1706346638811,-759.16205872,0.00022998,2]
[312845523,1706346638820,-156.6460488,0.00022999,2]
[312845524,1706346638829,-19166.91135148,0.00022999,2]
[312845525,1706346638839,-696464.20646638,0.00023,2]
[312845526,1706346638848,-23137.77602004,0.00023,2]
[312845527,1706346638857,-153.21,0.00023012,2]
[312845528,1706346638868,-152.85798366,0.00023299,2]
[312845529,1706346638877,-153.21,0.00023399,2]
[312845530,1706346638887,-155.62368496,0.00023693,2]
[312845531,1706346638896,-205.0,0.00023712,2]
[312845532,1706346638906,-208.0,0.00023712,2]
[312845533,1706346638916,-205.0,0.00023712,2]
[312845534,1706346638929,-597.83,0.00023965,2]
[312845535,1706346638938,-420.0,0.00023985,2]
[312845536,1706346638947,-210.0,0.00024281,2]
[312845537,1706346638957,-1581.8,0.00024384,2]
[312845538,1706346638966,-245.61,0.00024384,2]
[312845539,1706346638975,-156.06,0.00024513,2]
[312845540,1706346638984,-473.4,0.00024545,2]
[312845541,1706346638993,-155.62368496,0.00024552,2]
[312845542,1706346639002,-937.32,0.0002459,2]
[312845543,1706346639012,-150.95,0.00024658,2]
[312845544,1706346639021,-250.0,0.00024658,2]
[312845545,1706346639031,-170.64638633,0.000249,2]
[312845546,1706346639041,-743.0,0.00024997,2]
[312845547,1706346639050,-405.30886415,0.00025,2]
[312845548,1706346639059,-3010.5035352,0.00025,2]
[312845549,1706346639068,-168.96596867,0.00025,2]
[312845550,1706346639078,-526.6,0.00025306,2]
[312845551,1706346639087,-534.15370615,0.000254,2]
[312845554,1706346639096,-155.62368496,0.00025412,2]
[312845556,1706346639105,-597.83,0.00025609,2]
[312845558,1706346639114,-261.0,0.00026062,2]
[312845560,1706346639123,-875.565,0.00026146,2]
[312845561,1706346639132,-837.0,0.00026146,2]
[312845562,1706346639142,-427.0,0.00026146,2]
[312845563,1706346639151,-1938.0,0.00026146,2]
[312845564,1706346639160,-319.0,0.00026146,2]
[312845565,1706346639169,-1138.0,0.00026146,2]
[312845566,1706346639178,-860.0,0.00026146,2]
[312845567,1706346639187,-2278.0,0.00026156,2]
[312845568,1706346639197,-13256.116,0.00026156,2]
[312845569,1706346639206,-155.62368496,0.00026272,2]
[312845570,1706346639216,-205.0,0.00026504,6]
[312845571,1706346639225,-150.95,0.00026712,2]
[312845572,1706346639234,-937.32,0.00026854,2]
[312845573,1706346639244,-155.62368496,0.00027132,2]
[312845574,1706346639253,-597.83,0.00027253,2]
[312845575,1706346639266,-473.4,0.00027272,2]
[312845576,1706346639276,-395.56404013,0.00027321,2]
[312845577,1706346639285,-773.26543485,0.00027321,2]
[312845578,1706346639294,-710.43,0.00027397,2]
[312845579,1706346639304,-6462.8619,0.000274,2]
[312845580,1706346639313,-154.48,0.000274,2]
[312845581,1706346639322,-154.48,0.000274,2]
[312845582,1706346639332,-154.48,0.000274,2]
[312845583,1706346639342,-154.48,0.000274,2]
[312845584,1706346639351,-981.59728137,0.00027462,2]
[312845585,1706346639515,-710.43,0.00027556,2]
[312845586,1706346639528,-154.48,0.00027587,2]
[312845587,1706346639538,-7769.12660302,0.00027597,2]
[312845588,1706346639548,-10458.62012787,0.00027599,2]
[312845589,1706346639558,-162.18930337,0.00027599,2]
[312845590,1706346639567,-1364.0,0.000276,2]
[312845591,1706346639576,-4411.0,0.000276,2]
[312845592,1706346639586,-200.0,0.000276,2]
[312845593,1706346639595,-155.0,0.000276,2]
[312845594,1706346639605,-1447.61,0.00027671,2]
[312845595,1706346639614,-533.23225959,0.00027689,2]
[312845596,1706346639624,-710.43,0.00027714,2]
[312845597,1706346639633,-361.28072426,0.00027717,4]
[312845598,1706346639643,-710.43,0.00027872,2]
[312845599,1706346639653,-168.32412908,0.000279,2]
[312845600,1706346639662,-2302.35314348,0.000279,2]
[312845601,1706346639672,-534.15370615,0.000279,2]
[312845602,1706346639682,-154.48,0.0002799,2]
[312845603,1706346639693,-150.01,0.00027999,2]
[312845604,1706346639702,-3302.58843747,0.00027999,2]
[312845605,1706346639712,-325349.94522769,0.00028,2]
[312845606,1706346639722,-692.55054194,0.00028,2]
[312845607,1706346639732,-5586.0116684,0.00028,2]
[312845608,1706346639741,-710.43,0.0002803,2]
[312845609,1706346639751,-526.6,0.00028118,2]
[312845610,1706346639761,-800.0,0.00028159,3]
[312845611,1706346639770,-710.43,0.00028189,2]
[312845612,1706346639780,-1000.0,0.000283,2]
[312845613,1706346639789,-710.43,0.00028347,2]
[312845614,1706346639799,-150.0,0.00028483,2]
[312845616,1706346639808,-150.0,0.00028486,2]
[312845618,1706346639818,-150.0,0.00028487,2]
[312845619,1706346639827,-150.0,0.0002849,2]
[312845620,1706346639839,-150.0,0.00028494,2]
[312845621,1706346639849,-150.0,0.000285,2]
[312845622,1706346639858,-150.0,0.00028502,2]
[312845623,1706346639868,-710.43,0.00028505,2]
[312845624,1706346639879,-150.0,0.00028507,2]
[312845625,1706346639888,-150.0,0.0002851,2]
[312845626,1706346639898,-150.0,0.00028517,2]
[312845627,1706346639907,-150.0,0.00028519,2]
[312845628,1706346639916,-150.0,0.0002852,2]
[312845629,1706346639925,-150.0,0.0002852,2]
[312845630,1706346639934,-150.0,0.00028528,2]
[312845631,1706346639943,-150.0,0.00028534,2]
[312845632,1706346639951,-1500.0,0.00028536,2]
[312845633,1706346639960,-150.0,0.00028537,2]
[312845634,1706346639970,-150.0,0.00028537,2]
[312845635,1706346639978,-150.0,0.00028541,2]
[312845636,1706346639987,-150.0,0.00028541,2]
[312845637,1706346639997,-150.0,0.00028542,2]
[312845638,1706346640006,-150.0,0.00028544,2]
[312845639,1706346640015,-150.0,0.00028548,2]
[312845640,1706346640024,-150.0,0.00028548,2]
[312845641,1706346640033,-150.0,0.00028554,2]
[312845642,1706346640042,-150.0,0.00028554,2]
[312845643,1706346640051,-150.0,0.00028559,2]
[312845644,1706346640060,-150.0,0.00028564,2]
[312845645,1706346640069,-150.0,0.00028568,2]
[312845646,1706346640078,-150.0,0.00028569,2]
[312845647,1706346640087,-150.0,0.00028571,2]
[312845648,1706346640096,-153.15055908,0.00028583,2]
[312845649,1706346640105,-150.0,0.00028587,2]
[312845650,1706346640114,-150.0,0.00028588,2]
[312845651,1706346640124,-150.0,0.00028595,2]
[312845652,1706346640133,-150.0,0.00028598,2]
[312845653,1706346640143,-150.0,0.000286,2]
[312845654,1706346640151,-150.0,0.00028606,2]
[312845655,1706346640160,-252.30935602,0.00028609,2]
[312845656,1706346640169,-150.0,0.00028618,2]
[312845657,1706346640179,-227.87349012,0.00028619,2]
[312845658,1706346640188,-150.0,0.00028624,2]
[312845659,1706346640197,-150.0,0.00028628,2]
[312845660,1706346640207,-150.0,0.00028637,2]
[312845661,1706346640216,-150.0,0.0002864,2]
[312845662,1706346640225,-190.67017816,0.00028657,2]
[312845663,1706346640234,-150.0,0.00028659,2]
[312845664,1706346640243,-543.76519103,0.00028661,2]
[312845665,1706346640252,-150.0,0.00028662,2]
[312845666,1706346640261,-1500.0,0.00028663,2]
[312845667,1706346640270,-710.43,0.00028664,2]
[312845668,1706346640279,-150.0,0.00028664,2]
[312845669,1706346640288,-150.0,0.00028667,2]
[312845670,1706346640297,-150.0,0.00028671,2]
[312845671,1706346640306,-150.0,0.00028672,2]
[312845672,1706346640315,-150.0,0.00028673,2]
[312845674,1706346640324,-150.0,0.00028676,2]
[312845675,1706346640333,-150.0,0.00028677,2]
[312845676,1706346640342,-150.0,0.00028683,2]
[312845677,1706346640351,-150.0,0.00028686,2]
[312845678,1706346640360,-150.0,0.00028692,2]
[312845679,1706346640370,-1447.61,0.00028695,2]
[312845681,1706346640380,-150.0,0.00028696,2]
[312845682,1706346640389,-150.0,0.00028696,2]
[312845683,1706346640398,-500.0,0.000287,2]
[312845684,1706346640407,-150.0,0.00028704,2]
[312845685,1706346640417,-150.0,0.00028709,2]
[312845686,1706346640426,-150.0,0.00028721,2]
[312845687,1706346640436,-150.0,0.00028725,2]
[312845688,1706346640449,-150.0,0.00028727,2]
[312845689,1706346640459,-150.0,0.00028727,2]
[312845690,1706346640468,-154.48,0.00028729,2]
[312845691,1706346640478,-303.44524164,0.00028729,2]
[312845692,1706346640489,-150.0,0.00028732,2]
[312845693,1706346640499,-150.0,0.00028739,2]
[312845694,1706346640508,-153.01967497,0.00028748,2]
[312845695,1706346640518,-150.0,0.00028755,2]
[312845696,1706346640530,-150.95,0.00028767,2]
[312845697,1706346640542,-6640.51874642,0.00028768,6]
[312845698,1706346640550,-303.07343434,0.00028768,2]
[312845699,1706346640560,-377.39086493,0.0002877,2]
[312845700,1706346640569,-170.08993941,0.0002877,2]
[312845701,1706346640580,-504.41543892,0.0002877,2]
[312845702,1706346640590,-885.33513154,0.00028771,2]
[312845703,1706346640600,-64241.5015323,0.00028782,2]
[312845704,1706346640610,-2363.8493159,0.00028802,2]
[312845705,1706346640619,-1627.1151318,0.00028802,2]
[312845706,1706346640629,-710.43,0.00028822,2]
[312845707,1706346640639,-155.22842718,0.00028848,2]
[312845708,1706346640648,-161.88839056,0.0002885,2]
[312845709,1706346640657,-597.83,0.00028897,2]
[312845710,1706346640666,-157.93913271,0.000289,2]
[312845711,1706346640675,-937.32,0.00029118,2]
[312845712,1706346640684,-319.0,0.00029146,2]
[312845713,1706346640693,-1138.0,0.00029146,2]
[312845714,1706346640702,-860.0,0.00029146,2]
[312845715,1706346640711,-1531.678,0.00029156,2]
[312845716,1706346640721,-205.0,0.00029295,10]
[312845717,1706346640729,-688.576499,0.000297,2]
[312845718,1706346640739,-1447.61,0.00029719,2]
[312845719,1706346640748,-473.4,0.0003,2]
[312845720,1706346640757,-1228.30118466,0.0003,4]
[312845721,1706346640766,-9657.29212585,0.0003,2]
[312845722,1706346640775,-585.71773266,0.0003,2]
[312845723,1706346640784,-696.7674007,0.0003,2]
[312845724,1706346640794,-155.0,0.0003,2]
[312845725,1706346640803,-1966.38140147,0.0003,2]
[312845726,1706346640812,-526.88942064,0.0003,4]
[312845727,1706346640822,-532.67039341,0.0003,4]
[312845728,1706346640831,-404.4982775,0.0003,4]
[312845729,1706346640841,-19169.54175568,0.0003,4]
[312845730,1706346640850,-3540.4078158,0.0003,4]
[312845731,1706346640859,-1823.00634161,0.0003,4]
[312845732,1706346640869,-912.43344034,0.0003,4]
[312845733,1706346640879,-375.07039818,0.0003,4]
[312845734,1706346640889,-156.10206087,0.0003,4]
[312845735,1706346640898,-3000.0,0.0003,2]
[312845736,1706346640907,-3000.0,0.0003,2]
[312845737,1706346640917,-3000.0,0.0003,2]
[312845738,1706346640926,-3000.0,0.0003,2]
[312845739,1706346640935,-3000.0,0.0003,2]
[312845740,1706346640944,-3000.0,0.0003,2]
[312845741,1706346640953,-408.66631702,0.0003,2]
[312845742,1706346640963,-408.66631702,0.0003,2]
[312845743,1706346640972,-408.66631702,0.0003,2]
[312845744,1706346640981,-156.39,0.00030137,2]
[312845745,1706346640990,-155.31,0.00030137,2]
[312845746,1706346640999,-150.1,0.000302,3]
[312845747,1706346641008,-522.6083542,0.00030478,2]
[312845748,1706346641017,-151.94880006,0.00030501,2]
[312845749,1706346641027,-597.83,0.00030541,2]
[312845750,1706346641036,-2302.35314347,0.00030718,2]
[312845751,1706346641045,-1447.61,0.00030743,2]
[312845752,1706346641054,-500.0,0.000308,2]
[312845753,1706346641064,-150.95,0.00030822,2]
[312845754,1706346641073,-368.27,0.00030911,2]
[312845755,1706346641082,-526.6,0.00030929,2]
[312845756,1706346641092,-150.0,0.0003098,2]
[312845757,1706346641100,-214.75625319,0.00031,4]
[312845758,1706346641109,-500.0,0.00031348,2]
[312845759,1706346641118,-937.32,0.00031382,2]
[312845760,1706346641128,-150.0,0.00031528,2]
[312845761,1706346641137,-180.0,0.00031644,2]
[312845762,1706346641146,-1155.39305488,0.000317,2]
[312845763,1706346641155,-1447.61,0.00031767,2]
[312845764,1706346641164,-510.25693767,0.00031896,2]
[312845765,1706346641173,-150.86250258,0.000319,2]
[312845766,1706346641182,-201.55878193,0.000319,2]
[312845767,1706346641192,-995.87847796,0.000319,2]
[312845768,1706346641201,-152.85798366,0.00031939,2]
[312845769,1706346641211,-154.48,0.00031968,2]
[312845770,1706346641220,-500.0,0.00032,2]
[312845771,1706346641229,-500.0,0.00032,2]
[312845772,1706346641238,-500.0,0.00032,2]
[312845773,1706346641248,-500.0,0.00032,2]
[312845774,1706346641257,-500.0,0.00032,2]
[312845775,1706346641266,-500.0,0.00032,2]
[312845776,1706346641275,-500.0,0.00032,2]
[312845777,1706346641283,-500.0,0.00032,2]
[312845778,1706346641292,-500.0,0.00032,2]
[312845779,1706346641301,-500.0,0.00032,2]
[312845780,1706346641310,-500.0,0.00032,2]
[312845781,1706346641319,-500.0,0.00032,2]
[312845782,1706346641328,-500.0,0.00032,2]
[312845783,1706346641337,-500.0,0.00032,2]
[312845784,1706346641346,-500.0,0.00032,2]
[312845785,1706346641355,-500.0,0.00032,2]
[312845786,1706346641363,-500.0,0.00032,2]
[312845787,1706346641372,-500.0,0.00032,2]
[312845788,1706346641384,-500.0,0.00032,2]
[312845789,1706346641392,-500.0,0.00032,2]
[312845790,1706346641401,-500.0,0.00032,2]
[312845791,1706346641409,-1963.19510933,0.00032,2]
[312845792,1706346641418,-129893.7377609,0.00032,2]
[312845793,1706346641427,-155.92820751,0.00032,4]
[312845794,1706346641436,-1124.51533516,0.00032,2]
[312845795,1706346641446,-1424.58459089,0.00032053,2]
[312845796,1706346641458,-913.52532653,0.00032053,4]
[312845797,1706346641467,-7301.85860037,0.00032053,4]
[312845798,1706346641476,-377.32693414,0.00032055,2]
[312845799,1706346641485,-4388.16607357,0.00032055,4]
[312845800,1706346641494,-205.0,0.00032086,15]
[312845801,1706346641503,-522.6083542,0.00032372,2]
[312845802,1706346641512,-350.0,0.000324,2]
[312845803,1706346641523,-500.0,0.000324,2]
[312845804,1706346641534,-500.0,0.000324,2]
[312845805,1706346641543,-500.0,0.000324,2]
[312845806,1706346641553,-500.0,0.000324,2]
[312845807,1706346641562,-500.0,0.000324,2]
[312845808,1706346641571,-2424.24094553,0.000324,2]
[312845809,1706346641580,-2424.24094553,0.000324,2]
[312845810,1706346641590,-2424.24094553,0.000324,2]
[312845811,1706346641599,-2424.24094553,0.000324,2]
[312845812,1706346641609,-173.0,0.00032411,4]
[312845813,1706346641619,-312.17671248,0.000325,2]
[312845814,1706346641629,-178.0,0.00032663,2]
[312845815,1706346641638,-150.875165,0.000327,3]
[312845816,1706346641648,-473.4,0.00032727,2]
[312845817,1706346641657,-6497.04833786,0.000328,2]
[312845818,1706346641666,-154.48,0.00032867,2]
[312845819,1706346641676,-156.39,0.00032877,2]
[312845820,1706346641685,-150.95,0.00032877,2]
[312845821,1706346641694,-166.89,0.00032877,2]
[312845822,1706346641704,-155.31,0.00032877,2]
[312845823,1706346641714,-500.0,0.00032877,2]
[312845824,1706346641724,-153.83,0.00032877,15]
[312845825,1706346641735,-960.68513342,0.00033,2]
[312845826,1706346641745,-3000.0,0.00033,4]
[312845827,1706346641755,-2988.28244895,0.00033348,2]
[312845828,1706346641766,-729.36037346,0.000335,2]
[312845829,1706346641777,-2302.35314347,0.00033536,5]
[312845830,1706346641787,-937.32,0.00033645,2]
[312845831,1706346641797,-526.6,0.00033741,2]
[312845832,1706346641807,-507.31895461,0.00034,4]
[312845833,1706346641816,-6167.18273621,0.00034,2]
[312845834,1706346641826,-1223.28062569,0.00034,4]
[312845835,1706346641836,-522.6083542,0.00034266,2]
[312845836,1706346641847,-150.0,0.00034548,10]
[312845837,1706346641858,-205.0,0.00034878,19]
[312845838,1706346641867,-505.96050048,0.000349,2]
[312845839,1706346641878,-505.96050046,0.000349,2]
[312845840,1706346641887,-505.96050046,0.000349,2]
[312845841,1706346641896,-505.96050046,0.000349,2]
[312845842,1706346641906,-505.96050046,0.000349,2]
[312845843,1706346641915,-155.0,0.00035,2]
[312845844,1706346641924,-1263.49394671,0.00035,4]
[312845845,1706346641934,-170.59110064,0.00035,2]
[312845846,1706346641944,-176.61,0.00035,2]
[312845847,1706346641954,-11095.30888515,0.0003509,2]
[312845848,1706346641962,-1784.48,0.00035499,5]
[312845849,1706346641972,-1830.71,0.00035499,5]
[312845850,1706346641981,-434.0,0.0003554,2]
[312845851,1706346641990,-352.49,0.00035548,2]
[312845852,1706346641998,-1581.8,0.00035616,2]
[312845853,1706346642007,-155.31,0.00035616,2]
[312845854,1706346642017,-245.61,0.00035616,2]
[312845855,1706346642026,-2105.1755828,0.00035664,2]
[312845856,1706346642036,-1455.0435772,0.00035664,2]
[312845857,1706346642045,-6601.99714348,0.00035688,15]
[312845858,1706346642054,-9009.49174488,0.00035688,15]
[312845859,1706346642064,-11789.65654669,0.00035688,15]
[312845860,1706346642075,-9670.46958734,0.00035688,15]
[312845861,1706346642086,-15866.28629292,0.00035782,15]
[312845862,1706346642096,-11139.0244947,0.0003583,15]
[312845863,1706346642105,-937.32,0.00035909,2]
[312845864,1706346642114,-6370.06456938,0.00036,30]
[312845865,1706346642124,-1829.65,0.00036012,5]
[312845866,1706346642134,-522.6083542,0.00036161,2]
[312845867,1706346642145,-1795.81,0.00036164,5]
[312845868,1706346642155,-2302.35314347,0.00036355,9]
[312845869,1706346642165,-1791.55,0.00036361,5]
[312845870,1706346642174,-1815.95,0.00036613,5]
[312845871,1706346642183,-505.96050046,0.00036707,2]
[312845872,1706346642193,-150.0,0.000369,2]
[312845873,1706346642203,-166.89,0.00036986,2]
[312845874,1706346642212,-153.83,0.00036986,15]
[312845875,1706346642221,-150.0,0.00037,30]
[312845876,1706346642233,-312.64408967,0.00037,4]
[312845877,1706346642243,-4010.40236864,0.00037,2]
[312845878,1706346642253,-150.0,0.000372,30]
[312845879,1706346642262,-1000.0,0.000373,2]
[312845880,1706346642271,-150.0,0.000374,30]
[312845881,1706346642280,-1000.0,0.000374,2]
[312845882,1706346642289,-1000.0,0.000374,2]
[312845883,1706346642299,-1000.0,0.000374,2]
[312845884,1706346642308,-1000.0,0.000374,2]
[312845885,1706346642317,-1000.0,0.000374,2]
[312845886,1706346642326,-150.0,0.000376,30]
[312845887,1706346642335,-205.0,0.00037669,24]
[312845888,1706346642345,-1733.07,0.000377,3]
[312845889,1706346642354,-158.02607193,0.000378,30]
[312845890,1706346642363,-154.48,0.00037864,2]
[312845891,1706346642372,-2647.77,0.00037873,2]
[312845892,1706346642382,-1846.5018497,0.00037874,2]
[312845893,1706346642392,-1587.8281167,0.00037874,2]
[312845894,1706346642402,-1282.9720225,0.00037874,2]
[312845895,1706346642412,-1110.9004679,0.00037874,2]
[312845896,1706346642423,-2968.85718946,0.0003788,2]
[312845897,1706346642433,-587.2926932,0.00037897,2]
[312845898,1706346642444,-172.92570118,0.00037898,4]
[312845899,1706346642456,-16965.80614299,0.00037898,10]
[312845900,1706346642662,-7484.24773865,0.00037898,10]
[312845901,1706346642672,-156.81534138,0.00037899,2]
[312845902,1706346642681,-150.0,0.00037899,2]
[312845903,1706346642690,-155.0,0.000379,4]
[312845904,1706346642700,-3425.51805328,0.000379,5]
[312845905,1706346642710,-500.0,0.000379,2]
[312845906,1706346642719,-890.103426,0.000379,2]
[312845907,1706346642728,-306.472067,0.000379,8]
[312845908,1706346642738,-52519.54643059,0.000379,3]
[312845909,1706346642749,-436.800001,0.000379,3]
[312845910,1706346642782,-3801.47344978,0.000379,3]
[312845911,1706346642798,-992.29229622,0.00035664,2]
[312845913,1706346642810,-646.75178338,0.00035664,2]
[312845915,1706346642821,-2321.86528265,0.00035664,2]
[312845923,1706346643328,-2424.24094553,0.000324,2]
[312845924,1706346643337,-19322.42260971,0.00035664,2]
[312845925,1706346643375,-175.65372223,0.000319,2]
[312845926,1706346643384,-34164.46773574,0.00035664,2]
[312845927,1706346643394,-50561.17876531,0.00037874,2]
[312845928,1706346643406,-92.91911789,0.00037874,2]
[312845929,1706346643415,-43860.3960586,0.00037874,2]
[312845931,1706346643425,-163546.68482351,0.000379,3]
[312845933,1706346643468,-4148.9,0.000379,3]
[312845934,1706346643514,-7836.42486097,0.000379,3]
[312845935,1706346643536,-32028.80861022,0.000379,3]
[312845937,1706346643604,-150.01,0.00027999,2]
[312845938,1706346643615,-759.25795473,0.000319,2]
[312845939,1706346643627,-471.06540919,0.000319,2]
[312845940,1706346643683,-155.62368496,0.00027992,2]
[312845941,1706346643693,-395.5050376,0.00027999,2]